Cogmind - Beta 10.2 @@@ ROGUE MODE // 2020.11.01 @ 23:11:17 // Halloween2020/ForbiddenLore Player: Andru7428 Result: Self-destructed Performance ------------- Evolutions (3) 1500 Regions Visited (8) 1600 Robots Destroyed (121) 605 Value Destroyed (3166) 3166 Prototype IDs (8) 160 Alien Tech Used (0) 0 Bonus (164) 164 TOTAL SCORE: 7195 Bonus ------- Follower Combat Kills 173 Friendly Fire -9 Cogmind --------- Core Integrity 511/700 Matter 57/300 Energy 100/100 System Corruption 11% Temperature Cool (0) Movement Rolling (130) Ox3 Location -7/Factory Parts ------- > --- POWER (1) -------- (None) > --- PROPULSION (2) --- Armored Huge Wheel > --- UTILITY (8) ------ Improved Heat Sink High-capacity Storage Unit High-capacity Storage Unit High-capacity Storage Unit Advanced Signal Interpreter Improved Medium Armor Plating Improved Trap Extractor > --- WEAPON (2) ------- Flak Gun > --- INVENTORY (28) --- Armored Huge Wheel Large Storage Unit High-capacity Storage Unit Advanced Terrain Scanner Medium Reactive Plating Hacking Suite Hacking Suite System Shield Bomb Drone Bay (16/16) EM Pulse Cannon Shotgun High-powered Shotgun Gauss Rifle Heavy Missile Launcher Makeshift Hammer Blade Trap Explosive Trap Explosive Trap Explosive Trap Explosive Trap Heavy Explosive Trap Heavy Explosive Trap Proton Bomb Trap Proton Bomb Trap Proton Bomb Trap Peak State ------------ > --- POWER ------------ Light Nuclear Core > --- PROPULSION ------- Armored Huge Wheel > --- UTILITY ---------- Improved Heat Sink High-capacity Storage Unit High-capacity Storage Unit High-capacity Storage Unit Advanced Signal Interpreter Hacking Suite Bomb Drone Bay > --- WEAPON ----------- EM Pulse Cannon Gauss Rifle > --- INVENTORY -------- Light Nuclear Core Light Treads Light Treads Light Treads Light Treads Large Storage Unit Large Storage Unit Advanced Signal Interpreter Advanced Terrain Scanner Hacking Suite Hacking Suite Heavy Assault Rifle Heavy Assault Rifle Heavy Assault Rifle Shotgun Flak Gun Rocket Launcher Datajack Makeshift Hammer Blade Trap Blade Trap Blade Trap Explosive Trap Explosive Trap Explosive Trap Explosive Trap [Rating: 49] Favorites ----------- Power Reinforced Ion Engine Engine Reinforced Ion Engine Power Core Light Nuclear Core Propulsion Light Treads Treads Light Treads Leg Aluminum Leg Wheel Armored Huge Wheel Utility High-capacity Storage Unit Device Improved Heat Sink Storage High-capacity Storage Unit Processor Advanced Signal Interpreter Hackware Hacking Suite Protection Medium Armor Plating Weapon Shotgun Energy Gun EM Pulse Gun Energy Cannon EM Pulse Cannon Ballistic Gun Shotgun Launcher Rocket Launcher Impact Weapon Makeshift Hammer Special Melee Weapon Datajack Build | -11 -10 -10 -9 -9 -9 -8 -8 -7 ------- Run | Scr Mat Min Mat Min Exi Min Mat Fac Slots Evolved 6 | . . . 2 . . . 2 2 Power . | . . . . . . . . . Propulsion . | . . . . . . . . . Utility 6 | . . . 2 . . . 2 2 Weapon . | . . . . . . . . . Parts Attached 124 | 7 12 4 28 5 4 6 27 31 Power 11 | 1 1 . . 1 . . 4 4 Engine 7 | 1 1 . . 1 . . 2 2 Core 4 | . . . . . . . 2 2 Reactor . | . . . . . . . . . Propulsion 20 | 2 1 1 5 3 . . 7 1 Treads 18 | 2 1 . 5 3 . . 7 . Leg 1 | . . 1 . . . . . . Wheel 1 | . . . . . . . . 1 Hover . | . . . . . . . . . Flight . | . . . . . . . . . Utility 39 | 2 3 . 8 1 4 1 4 16 Device 11 | . . . 1 . . . 2 8 Storage 14 | 2 3 . 3 . 4 . . 2 Processor 1 | . . . . . . . . 1 Hackware 1 | . . . . . . . 1 . Protection 12 | . . . 4 1 . 1 1 5 Artifact . | . . . . . . . . . Weapon 54 | 2 7 3 15 . . 5 12 10 Energy Gun 19 | 1 2 1 8 . . 3 3 1 Energy Cannon 3 | . . . . . . . 3 . Ballistic Gun 17 | 1 4 1 4 . . . 1 6 Ballistic Cannon . | . . . . . . . . . Launcher 9 | . 1 1 3 . . 2 2 . Special Weapon . | . . . . . . . . . Impact Weapon 1 | . . . . . . . . 1 Slashing Weapon . | . . . . . . . . . Piercing Weapon . | . . . . . . . . . Special Melee Weapon 5 | . . . . . . . 3 2 Unidentified Prototypes 5 | . . . 3 . . . . 2 Parts Lost 18 | . 1 2 2 . . 2 6 5 Power 3 | . . . . . . . 2 1 Propulsion 1 | . . 1 . . . . . . Utility 5 | . . . . . . 1 2 2 Weapon 9 | . 1 1 2 . . 1 2 2 Highest Loss Streak 4 | . 1 1 1 . . 1 4 2 Average Slot Usage (%) 96 | . 99 99 94 100 100 100 96 92 Engine 10 | . 14 14 11 11 11 11 5 5 Treads 17 | . 28 20 17 22 22 22 18 1 Leg 1 | . . 7 3 . . . . . Wheel 1 | . . . . . . . . 6 Device 6 | . . . 7 . . . 4 21 Storage 27 | . 28 28 25 33 33 33 27 23 Processor 1 | . . . . . . . . 7 Hackware 2 | . . . . . . . 9 5 Protection 5 | . . . 7 11 11 11 9 2 Energy Gun 9 | . 13 11 13 11 11 10 6 . Ballistic Gun 11 | . 14 16 8 11 11 11 9 10 Naked Turns . | . . . . . . . . . Heaviest Build 139 | 17 47 48 71 71 116 116 118 139 Greatest Support 40 | 40 40 40 40 40 40 40 40 40 Greatest Overweight (x) 4 | . 1 2 2 1 2 2 2 4 Average Overweight (x) 1 | . . 1 1 1 1 2 2 3 Largest Inventory Capacity 28 | 8 16 16 22 22 28 28 28 28 Average Capacity 18 | 7 10 16 17 22 24 28 28 28 Most Carried 28 | 6 16 16 22 22 25 27 28 28 Average Carried 17 | 5 9 15 17 21 23 24 26 27 Final Capacity 28 | 8 16 16 22 22 28 28 28 28 Final Carried 28 | 6 16 16 22 22 25 24 28 27 Class Distribution -------------------- 51% | Mutant 30% | Hauler-Mutant 16% | Trapper-Mutant Dominant Class ---------------- Mutant | -10/Materials Mutant | -10/Mines Mutant | -9/Materials Hauler-Mutant | -9/Mines Hauler-Mutant | -9/Exiles Hauler-Mutant | -8/Mines Hauler-Mutant | -8/Materials Trapper-Mutant | -7/Factory Resources | -11 -10 -10 -9 -9 -9 -8 -8 -7 ----------- Run | Scr Mat Min Mat Min Exi Min Mat Fac Matter Collected 2441 | 342 292 98 487 64 . 182 451 525 Remotely . | . . . . . . . . . Salvage Created 4124 | 199 487 236 1112 90 . 312 1201 487 Parts 252 | 7 29 14 89 6 . 10 69 28 Haulers Intercepted 9 | . 2 . 4 . . . 2 1 Recyclers Shooed 2 | . 1 . . . . . 1 . Parts Field Recycled . | . . . . . . . . . Retrieved Matter . | . . . . . . . . . Parts Self-Destructed . | . . . . . . . . . Prevented . | . . . . . . . . . Kills | -11 -10 -10 -9 -9 -9 -8 -8 -7 ------- Run | Scr Mat Min Mat Min Exi Min Mat Fac Combat Hostiles Destroyed 93 | 6 13 7 25 2 . 7 22 11 Guns 63 | 6 10 4 15 1 . 2 14 11 Cannons 1 | . . . . . . . 1 . AOE 29 | . 3 3 10 1 . 5 7 . Classes Destroyed 14 | 3 5 . 2 1 . 1 1 1 Worker 3 | . . . . . . . 3 . Builder 4 | . 1 . 1 . . . 2 . Tunneler 1 | 1 . . . . . . . . Hauler 9 | . 2 . 4 . . . 2 1 Recycler 4 | 1 1 . 1 . . . . 1 Operator 1 | . 1 . . . . . . . Watcher 6 | . . . 3 . . . 3 . Swarmer 32 | . 9 3 10 . . . 3 7 Grunt 35 | . 4 4 5 1 . 6 15 . Brawler 1 | . . . . 1 . . . . Sentry 15 | . . . 10 . . . 4 1 Hunter 1 | . . . . . . 1 . . Programmer 3 | . . . . . . . . 3 Assembled 6 | 6 . . . . . . . . Best Kill Streak 9 | 2 9 3 5 2 . 3 7 4 Combat Bots Only 8 | 1 8 3 5 2 . 3 6 4 Max Kills in Single Turn 4 | 1 2 2 4 1 . 2 3 1 Gunslinging 1 | . 1 . 1 . . . . . Exploded 4 | . 1 2 4 1 . 2 2 . Melee . | . . . . . . . . . Uniques/NPCs Destroyed . | . . . . . . . . . Combat | -11 -10 -10 -9 -9 -9 -8 -8 -7 -------- Run | Scr Mat Min Mat Min Exi Min Mat Fac Damage Taken 4565 | 210 294 214 806 166 . 375 1093 1407 Core 562 | 50 45 16 116 15 . 19 112 189 Absorbed by Shields . | . . . . . . . . . Core Remaining (%) 69 | 80 . 55 . . . 62 79 . Volleys Fired 272 | 24 47 13 54 6 . 16 59 53 Largest 2 | 2 2 2 2 2 . 2 2 2 Hottest 110 | 60 63 63 110 68 . 68 91 56 Shots Fired 518 | 48 91 24 102 12 . 27 112 102 Gun 496 | 48 88 22 97 12 . 24 103 102 Cannon 4 | . . . . . . . 4 . Launcher 18 | . 3 2 5 . . 3 5 . Special . | . . . . . . . . . Kinetic 304 | 24 55 12 39 6 . 13 53 102 Thermal 24 | . . . 24 . . . . . Explosive 18 | . 3 2 5 . . 3 5 . Electromagnetic 172 | 24 33 10 34 6 . 11 54 . Robot Hit Streak 24 | 7 8 3 24 7 . 7 16 8 Robot Miss Streak 9 | 4 3 2 5 2 . 4 4 9 Penetration Max . | . . . . . . . . . Secondary Targets 9 | . 1 1 1 1 . 1 4 . Max Gunslinging Chain 1 | . 1 1 1 1 . 1 1 . Shots Hit Robots 386 | 23 55 18 86 9 . 21 83 91 Core Hits 254 | 13 28 13 72 5 . 14 66 43 Critical Hits 2 | . . . . . . 1 . 1 Critical Kills 1 | . . . . . . . . 1 Critical Parts Destroyed 1 | . . . . . . 1 . . Melee Attacks 12 | . . . . . . . 2 10 Impact 2 | . . . . . . . . 2 Slashing . | . . . . . . . . . Piercing . | . . . . . . . . . Sneak Attacks 10 | . . . . . . . 2 8 Combat Hostiles . | . . . . . . . . . Follow-up Attacks . | . . . . . . . . . Damage Inflicted 7994 | 292 945 356 2073 181 . 657 2467 1023 Guns 5262 | 292 677 230 1357 122 . 290 1416 878 Cannons 108 | . . . . . . . 108 . Explosions 2472 | . 268 122 716 56 . 367 943 . Melee . | . . . . . . . . . Ramming 152 | . . 4 . 3 . . . 145 Kinetic 2896 | 117 343 106 584 52 . 135 681 878 Thermal 622 | . . . 354 56 . . 212 . Explosive 2110 | . 268 122 622 . . 367 731 . Electromagnetic 2214 | 175 334 124 513 70 . 155 843 . Impact . | . . . . . . . . . Slashing . | . . . . . . . . . Piercing . | . . . . . . . . . Highest Corruption 11 | . . . . . . . . 11 Average Corruption 1 | . . . . . . . . 1 Corruption Purged . | . . . . . . . . . Effects 8 | . . . . . . . . 8 Message Errors 4 | . . . . . . . . 4 Parts Rejected 1 | . . . . . . . . 1 Data Loss (minor) 1 | . . . . . . . . 1 Misdirections 1 | . . . . . . . . 1 Targeting Errors 1 | . . . . . . . . 1 Overload Shots . | . . . . . . . . . Overflow Damage 94 | . 17 . 33 . . . 44 . Projectiles . | . . . . . . . . . Explosions 94 | . 17 . 33 . . . 44 . Melee . | . . . . . . . . . Knockbacks 1 | . . . . . . . . 1 Impact 1 | . . . . . . . . 1 Kinetic . | . . . . . . . . . Secondary . | . . . . . . . . . Self-Inflicted Damage 329 | . . 13 57 25 . 29 135 70 Shots 11 | . . 1 2 1 . 2 5 . Rammed 14 | . . 1 . 1 . . . 12 Targets Rammed 14 | . . 1 . 1 . . . 12 Kicked . | . . . . . . . . . Crushed . | . . . . . . . . . Highest Temperature 389 | 20 30 123 389 150 . 54 117 . Average Temperature 51 | 17 10 61 85 75 . 15 30 . Received Heat Transfer 1031 | 20 18 93 237 48 . 108 495 12 Effects 1 | . . . 1 . . . . . Shutdowns 1 | . . . 1 . . . . . Siege Activations . | . . . . . . . . . Robots Corrupted . | . . . . . . . . . Combat Hostiles . | . . . . . . . . . Parts Fried 8 | . . 2 3 . . 1 2 . Impact Corruptions . | . . . . . . . . . Robots Melted . | . . . . . . . . . Combat Hostiles . | . . . . . . . . . Parts Melted . | . . . . . . . . . Heat Transferred 620 | . . . 420 50 . . 150 . Parts Sabotaged . | . . . . . . . . . Parts Stolen . | . . . . . . . . . Parts Stripped . | . . . . . . . . . Power Chain Reactions 4 | . . . 1 1 . . 2 . Missiles Intercepted . | . . . . . . . . . Alert | -11 -10 -10 -9 -9 -9 -8 -8 -7 ------- Run | Scr Mat Min Mat Min Exi Min Mat Fac Peak Influence 414 | 10 351 72 391 217 . 155 414 199 Initial 182 | . . 2 15 152 . . . 182 Average 96 | 1 96 37 231 91 . 67 189 86 Maximum Alert Level 2 | . 1 . 1 1 . . 2 . Low Security (%) 80 | 100 91 100 32 66 . 100 52 100 Level 1 17 | . 8 . 67 33 . . 28 . Level 2 1 | . . . . . . . 18 . Level 3 . | . . . . . . . . . Level 4 . | . . . . . . . . . Level 5 . | . . . . . . . . . High Security . | . . . . . . . . . Max Security . | . . . . . . . . . Squads Dispatched 10 | . 1 . 1 . . . 3 5 Investigation 2 | . . . 1 . . . . 1 Extermination 3 | . . . . . . . . 3 Reinforcement 5 | . 1 . . . . . 3 1 Assault . | . . . . . . . . . Garrison . | . . . . . . . . . Intercept . | . . . . . . . . . Construction Impeded 2 | . . . . . . . 2 . Haulers Reinforced . | . . . . . . . . . Stealth | -11 -10 -10 -9 -9 -9 -8 -8 -7 --------- Run | Scr Mat Min Mat Min Exi Min Mat Fac Distress Signals 9 | . 2 . 2 . . . 3 2 Communications Jammed . | . . . . . . . . . Distress Signals . | . . . . . . . . . Times Spotted 153 | 7 27 7 40 4 . 10 38 20 Peak Tracking Total 6 | 1 5 3 6 2 . 3 6 5 Tactical Retreats 4 | 1 . . 1 . . 1 . 1 Traps | -11 -10 -10 -9 -9 -9 -8 -8 -7 ------- Run | Scr Mat Min Mat Min Exi Min Mat Fac Traps Triggered 4 | . 1 . 1 . . . . 2 Indirectly . | . . . . . . . . . Trap Hack Attempts 65 | . . . . . . . 27 38 Triggered . | . . . . . . . . . Disarmed 2 | . . . . . . . 2 . Reprogrammed 12 | . . . . . . . 7 5 Reused 1 | . . . . . . . . 1 Traps Extracted 13 | . . . . . . . 7 6 Installed 2 | . . . . . . . . 2 Triggered 2 | . . . . . . . 1 1 Machines | -11 -10 -10 -9 -9 -9 -8 -8 -7 ---------- Run | Scr Mat Min Mat Min Exi Min Mat Fac Machines Disabled 8 | . 1 . . 2 . . 4 1 Max in Single Turn 1 | . 1 . . 1 . . 1 1 Machines Sabotaged . | . . . . . . . . . Garrisons Compromised . | . . . . . . . . . Overloaded Fab Kills . | . . . . . . . . . Fab Network Shutdowns . | . . . . . . . . . Hacking | -11 -10 -10 -9 -9 -9 -8 -8 -7 --------- Run | Scr Mat Min Mat Min Exi Min Mat Fac Machines Accessed 29 | . 7 . 9 1 1 . 2 9 Terminals 25 | . 7 . 9 . . . 2 7 Fabricators 2 | . . . . . . . . 2 Repair Stations . | . . . . . . . . . Recycling Units . | . . . . . . . . . Scanalyzers . | . . . . . . . . . Garrison Access . | . . . . . . . . . Total Hacks 85 | . 25 . 27 1 3 . 9 20 Successful 48 | . 14 . 14 1 3 . 6 10 Failed 36 | . 10 . 13 . . . 3 10 Catastrophic 3 | . 1 . . . . . 1 1 Database Lockouts 1 | . 1 . . . . . . . Manual 67 | . 24 . 27 . . . 9 7 Terminals 76 | . 25 . 27 . . . 9 15 Fabricators 5 | . . . . . . . . 5 Repair Stations . | . . . . . . . . . Recycling Units . | . . . . . . . . . Scanalyzers . | . . . . . . . . . Garrison Access . | . . . . . . . . . Terminal Hacks 21 | . 5 . 3 1 3 . 4 5 Record 3 | . . . . . 3 . . . Part Schematic 3 | . 1 . 2 . . . . . Robot Analysis 4 | . 2 . 1 . . . 1 . Prototype ID Bank 2 | . . . . . . . 1 1 Open Door 1 | . . . . 1 . . . . Unreport Threat 4 | . 1 . . . . . 2 1 Locate Traps 3 | . . . . . . . . 3 Zone Layout 1 | . 1 . . . . . . . Fabricator Hacks 2 | . . . . . . . . 2 Load Schematic 2 | . . . . . . . . 2 Repair Station Hacks . | . . . . . . . . . Recycling Unit Hacks . | . . . . . . . . . Scanalyzer . | . . . . . . . . . Garrison Access Hacks . | . . . . . . . . . Unauthorized Hacks 25 | . 9 . 11 . . . 2 3 Terminals 25 | . 9 . 11 . . . 2 3 Track 15 | . 5 . 6 . . . 2 2 Botnet 9 | . 4 . 4 . . . . 1 Operators 1 | . . . 1 . . . . . Fabricators . | . . . . . . . . . Repair Stations . | . . . . . . . . . Recycling Units . | . . . . . . . . . Scanalyzers . | . . . . . . . . . Garrison Access . | . . . . . . . . . Data Cores Recovered 1 | . 1 . . . . . . . Used . | . . . . . . . . . Hacking Detections 26 | . 7 . 9 . . . 2 8 Full Trace Events 1 | . . . . . . . . 1 Feedback Events . | . . . . . . . . . Feedback Blocked . | . . . . . . . . . Robot Schematics Acquired . | . . . . . . . . . Robots Built . | . . . . . . . . . Matter . | . . . . . . . . . Time . | . . . . . . . . . Total Robot Build Rating . | . . . . . . . . . Part Schematics Acquired 3 | . 1 . 2 . . . . . Parts Built . | . . . . . . . . . Matter . | . . . . . . . . . Time . | . . . . . . . . . Total Part Build Rating . | . . . . . . . . . Parts Repaired . | . . . . . . . . . Time . | . . . . . . . . . Parts Recycled . | . . . . . . . . . Recycled Matter . | . . . . . . . . . Retrieved Matter . | . . . . . . . . . Retrieved Components . | . . . . . . . . . Parts Scanalyzed . | . . . . . . . . . Part Schematics Acquired . | . . . . . . . . . Parts Damaged . | . . . . . . . . . Bothacking | -11 -10 -10 -9 -9 -9 -8 -8 -7 ------------ Run | Scr Mat Min Mat Min Exi Min Mat Fac Used RIF Installer . | . . . . . . . . . Robots Hacked 6 | . . . . . . . 2 4 Non-combat 6 | . . . . . . . 2 4 Combat . | . . . . . . . . . Robot Hacks Applied 7 | . . . . . . . 2 5 no_distress 2 | . . . . . . . 1 1 find_chute 1 | . . . . . . . . 1 find_fabricator 2 | . . . . . . . . 2 find_recycling 2 | . . . . . . . 1 1 Relay Couplers Released . | . . . . . . . . . Robots Rewired . | . . . . . . . . . Allies Hacked . | . . . . . . . . . Hacks Repelled . | . . . . . . . . . Allies | -11 -10 -10 -9 -9 -9 -8 -8 -7 -------- Run | Scr Mat Min Mat Min Exi Min Mat Fac Total Allies 4 | . . . . 4 . . . . Largest Group 4 | . . . . 4 4 3 . . Highest-Rated Group 71 | . . . . 71 71 40 . . Highest-Rated Ally 31 | . . . . 31 31 16 . . Total Orders 1 | . . . . . . . . 1 RETURN 1 | . . . . . . . . 1 Ally Attacks 30 | . . . . 6 . 24 . . Total Damage 390 | . . . . 73 . 317 . . Kills 5 | . . . . 2 . 3 . . Allies Corrupted . | . . . . . . . . . Allies Melted . | . . . . . . . . . Intel | -11 -10 -10 -9 -9 -9 -8 -8 -7 ------- Run | Scr Mat Min Mat Min Exi Min Mat Fac Robot Analysis Total 4 | . 2 . 1 . . . 1 . Derelict Logs Recovered 4 | . . 3 . 1 . . . . Drone Launches 1 | . . . . . . . . 1 Drone Recoveries 1 | . . . . . . . . 1 Exploration | -11 -10 -10 -9 -9 -9 -8 -8 -7 ------------- Run | Scr Mat Min Mat Min Exi Min Mat Fac Turns Passed 12274 | 2628 1219 1081 1907 1139 386 846 1155 1913 Spaces Moved 5284 | 640 628 524 864 594 198 395 431 1010 Core 4 | 4 . . . . . . . . Treads 4381 | 636 628 524 864 594 198 395 431 111 Legs . | . . . . . . . . . Wheels 899 | . . . . . . . . 899 Hover . | . . . . . . . . . Flight . | . . . . . . . . . Fastest Speed 50 | 50 160 180 180 180 180 200 200 130 Average Speed 174 | 159 163 190 186 180 192 200 200 146 Slowest Speed 200 | 160 180 200 200 180 200 200 200 200 Overloaded Moves . | . . . . . . . . . Propulsion Burnouts . | . . . . . . . . . Robots Hopped . | . . . . . . . . . Cave-ins Triggered . | . . . . . . . . . Exploration Rate (%) 72 | 78 93 97 79 98 55 86 36 28 Regions Visited 8 Branch Regions 4 Pre-discovered Areas 1 | . . . . . 1 . . . Known Exits Taken 1 | . . . . . . 1 . . Unknown Exits Taken 7 | 1 1 1 1 1 1 . 1 . Scrap Searched 5 | . . 1 . 2 . 2 . . Spaces Dug 2 | . . . . . . . . 2 Terrain Destroyed 162 | . 14 17 48 . . 24 57 2 Melee 2 | . . . . . . . . 2 Projectile . | . . . . . . . . . AOE 160 | . 14 17 48 . . 24 57 . Terrain Rammed . | . . . . . . . . . Walls Destroyed . | . . . . . . . . . Machines Disabled . | . . . . . . . . . Actions | -11 -10 -10 -9 -9 -9 -8 -8 -7 --------- Run | Scr Mat Min Mat Min Exi Min Mat Fac Total 7808 | 2197 737 586 1062 655 204 424 611 1332 Wait 1866 | 1521 20 35 73 42 . 3 39 133 Move 5276 | 639 627 523 863 593 197 394 430 1010 Hop . | . . . . . . . . . Pick Up 78 | 6 18 6 19 1 1 3 12 12 Fast Attach 32 | 7 3 . 8 1 . . 1 12 Attach 21 | . 1 2 3 . . 2 7 6 Detach 5 | . . . 1 . . . . 4 Swap 71 | . 8 2 17 4 4 4 19 13 Drop 94 | . 13 4 24 7 2 2 15 27 Fire 272 | 24 47 13 54 6 . 16 59 53 Melee 12 | . . . . . . . 2 10 Ram 12 | . . . . . . . . 12 Kick . | . . . . . . . . . Crush 2 | . . 1 . 1 . . . . Escape Stasis . | . . . . . . . . . Rewire . | . . . . . . . . . Trap 67 | . . . . . . . 27 40 Miscellaneous . | . . . . . . . . . Route ------- -11/Scrapyard -10/Materials (discovered 5 exits: *Mat x3 / [*Min x2]) -10/Mines (discovered 2 exits: *Mat x2) -9/Materials (discovered 4 exits: *Mat x3 / *Min) -9/Mines (discovered 3 exits: *Mat x2 / *Exi) -9/Exiles -8/Mines (discovered 2 exits: *Mat x2) -8/Materials (discovered 2 exits: *Fac / [*Sto]) -7/Factory History --------- Turn | Location | Event 8 | -11/Scrapyard | Discovered new exit (range 16) 1412 | -11/Scrapyard | Assembled infested the area 2629 | -11/Scrapyard | Entered Materials 2630 | -10/Materials | Build established: Mutant 2749 | -10/Materials | Discovered new exit (range 17) 2957 | -10/Materials | Destroyed 8 combat bots 3154 | -10/Materials | Discovered new exit (range 16) 3160 | -10/Materials | Discovered new exit (range 10) 3432 | -10/Materials | Discovered new exit (range 5) 3565 | -10/Materials | Central database locked down 3611 | -10/Materials | Discovered new exit (range 12) 3848 | -10/Materials | Entered Mines 3870 | -10/Mines | Learned Materials security intel 3926 | -10/Mines | A weapon hastily lodged in a ceiling crevice suddenly fell to the ground 4019 | -10/Mines | Discovered new exit (range 11) 4240 | -10/Mines | Learned 4 Materials zone layouts 4395 | -10/Mines | Discovered new exit (range 14) 4498 | -10/Mines | Received a Rocket Launcher from a helpful Derelict 4528 | -10/Mines | Learned Materials emergency access door positions 4929 | -10/Mines | Entered Materials 4929 | -9/Materials | Evolved 2 slots: Utility x2 4930 | -9/Materials | Identified exit to Materials 5869 | -9/Materials | Discovered new exit (range 14) 6290 | -9/Materials | Discovered exit to Materials (range 14) 6590 | -9/Materials | Build established: Hauler-Mutant 6658 | -9/Materials | Discovered exit to Materials (range 4) 6836 | -9/Materials | Entered Mines 7012 | -9/Mines | Learned Materials trap positions 7028 | -9/Mines | Discovered exit to Materials (range 8) 7030 | -9/Mines | Assisted by bots powering up and referring to "LRC-V3" 7161 | -9/Mines | Discovered exit to Materials (range 11) 7399 | -9/Mines | Deemed a non-threat by the Exiles lab entrance 7645 | -9/Mines | Found the Drone Emporium 7660 | -9/Mines | Found Prototype Device 7743 | -9/Mines | Received a Mining Laser from a helpful Derelict 7962 | -9/Mines | Discovered new exit (range 5) 7975 | -9/Mines | Entered Exiles 7975 | -9/Exiles | Accompanied by 4 allies 8024 | -9/Exiles | Met 8R-AWN 8049 | -9/Exiles | Met EX-HEX 8193 | -9/Exiles | Met EX-DEC 8235 | -9/Exiles | Learned location of Zion (-6) 8343 | -9/Exiles | Discovered new exit (range 11) 8361 | -9/Exiles | Entered Mines 8361 | -8/Mines | Accompanied by 3 allies 8894 | -8/Mines | Discovered exit to Materials (range 9) 9103 | -8/Mines | Discovered exit to Materials (range 15) 9207 | -8/Mines | Entered Materials 9207 | -8/Materials | Evolved 2 slots: Utility x2 9208 | -8/Materials | Loaded intel: 23 trap records 9688 | -8/Materials | Discovered new exit (range 16) 9989 | -8/Materials | Lost 4 parts (1p1u2w) 10099 | -8/Materials | Discovered new exit (range 10) 10362 | -8/Materials | Entered Factory 10362 | -7/Factory | Evolved 2 slots: Utility x2 10527 | -7/Factory | Build established: Trapper-Mutant 10596 | -7/Factory | Identified Bomb Drone Bay 12264 | -7/Factory | System corruption reached 10% 12275 | -7/Factory | Self-destructed Last Messages --------------- 12260_ Slammed into P-60 Hacker. 12260_ Destabilizing: System corrupted (+2). 12261_ Slammed into P-60 Hacker. 12261_ Flak Gun destroyed. 12263_ Slammed into P-60 Hacker. 12263_ Imp. Sensor Array destroyed. 12263_ System corrupted by crushing effect (+5). 12264_ Slammed into P-60 Hacker. 12267_ System corrupted: Mic. Nuclear Core rejected. 12267_ Slammed into P-60 Hacker. 12269_ U-05 Engineer lays Concrete. 12269_ Slammed into P-60 Hacker. 12269_ Imp. Trap Extractor permanently disabled. 12269_ Destabilizing: Short circuit. 12271_ Slammed into P-60 Hacker. 12271_ Destabilizing: System interference. 12271_ Adv. Signal Interpreter temporarily disabled. 12271_ Flak Gun temporarily disabled. 12271_ Imp. Heat Sink temporarily disabled. 12272_ Slammed into P-60 Hacker. Map ----- +----------------------------------------------------+ | ???????????????????????????????????????" ??? " | | ???????????????????????????????????????? ????" | | ???????????????????????????????????????" ??? | | ???????????????????????????????????????" ""??" | | ??????????????????????????????????^???"" ""??" | | ?????????????????????????????????????""" ""??? | | ?????????????????????????????????????""" ??? | | ????????????????????????????????????? ??? | | ?????????????????????????????????????""" #??? | | ???????????????????#########?? ? ^ ?""" #??? | | ???????????????????# ? ?""" #??? | | ???????????????????# """" #??? | | ???????????????????# """" #??? | | ?????????????####### """ """ """" +??? | | ?????????????# # """ """ """" #??? | | ?????????????# """ # """ """ #??? | | ?????????????# "Y + """ #??? | | ?????????????# """ # """ """ k """ #??? | | ?????????????# # """ """ """ #### | | ?????????????# # """ """ # | | ?????????????# """ # # | | ?????????????# """ # ^ | | ?????????????# """ # ### | | ?????????????# # ""T"" k #?# | | ?????????????# # """"" #?###/ | | ???????????????! # @p #?# == | | ?????????????????### * #?#] | | ?????????????######## #####################?# | | ?????????????# # ##################????# | | ?????????????# + # #??#! ! | | ?????????????# ! # # #??# | | ?????????????# ! # # #??#### | | ?????????????# # # """" """" """" #?????? | | ?????????????# # !# """" """" """?????????? | | ?????????????# # + """" """" "???????????? | | ?????????????######## # "" """" "???????????? | | ????????????######### # ???????? | | ????? *%! ##############???????????? | | ????? =! ?????????????????? | | ????? #########????????????????? | | ??????+##################????????????????????????? | | ?????????????????????????????????????????????????? | | ?????????????????????????????????????????????????? | | ?????????????????????????????????????????????????? | | ?????????????????????????????????????????????????? | | ?????????????????????????????????????????????????? | | ?????????????????????????????????????????????????? | | ?????????????????????????????????????????????????? | | ?????????????????????????????????????????????????? | | ?????????????????????????????????????????????????? | +----------------------------------------------------+ Best States ------------- Heat Dissipation 48 Energy Generation 16 Energy Capacity 290 Matter Stores 300 Matter Capacity 300 Sight Range 16 Robot Scan Range 13 Terrain Scan Density 10 Armor Coverage 375 Resistance: KI 30 Evasion (%) 40 Recoil Reduction 2 Offensive Hacking 10 Item Schematics ----------------- Lrg. Storage Unit | -10/Materials | Hacked Structural Scanner | -9/Materials | Hacked Imp. Signal Interpreter | -9/Materials | Hacked Robot Schematics ------------------ None Fabricated ------------ Nothing Alien Tech Used ----------------- None Achievements -------------- None Challenges ------------ None Game ------ Seed HardcellAlloyExtractor Manual? 0 Play Time 01:08:18 Cumulative 116.1 hours Start 2020.11.01 @ 18:08:12 End 2020.11.01 @ 23:11:17 Sessions 3 Manual Loads 0 Difficulty Rogue Special Mode Halloween2020/ForbiddenLore Game No. 82 Rogue 82 Adventurer 0 Explorer 0 Win Type - Total 1 Types 1/0/0/0/0/0/0/0/0 Lore% 61 Gallery% 68 Achievement% 55 Wizard Run 0 Options --------- ASCII 0 Keyboard 1 Movement Numpad Keybinds 0 Fullscreen 2 Font 18/Smallcaps Map View 76x50 Tactical HUD 1 Map Filters NONE Filters NONE Steam 1 RUN: b50905c5-576a-4ceb-bf27-3076c1a752e3